[Event "ESTCC U50 2018"]
[Site "Walbrzych"]
[Date "2018.04.15"]
[Round "2"]
[White "Wielosz, Jaroslaw"]
[Black "Germann, Martin"]
[Result "1-0"]
[ECO "A16"]
[WhiteElo "2038"]
[BlackElo "1755"]
[Annotator "NA RC"]
[PlyCount "65"]
[EventDate "2018.??.??"]
[EventCountry "POL"]
[SourceTitle "playchess.com"]
[Source "ChessBase"]
[SourceQuality "1"]
[WhiteTeam "Poland"]
[BlackTeam "Switzerland"]
[WhiteTeamCountry "POL"]
[BlackTeamCountry "SUI"]
[TimeControl "40/5400+30:1800+30"]

1. c4 Nf6 2. Nc3 c5 3. Nf3 d6 {A34: Symmetrical English: 2 Nc3, lines with ...d5} (3... Nc6 4. e3 e6 5. d4 d5 6. a3 dxc4 7. Bxc4 a6 8. O-O b5 9. Ba2 Bb7 10. Qe2 Qc7 11. Bd2 Be7 12. Rac1 c4 13. e4 Rd8 14. Be3 Ng4 15. e5 Na5 16. Bf4 Qb6 17. Rcd1 h5 18. h3 {½-½ (96) Ding,L (2769)-Grischuk,A (2767) Berlin 2018}) 4. g3 a6 5. Bg2 Qc7 6. d3 e6 7. a3 Be7 8. O-O O-O 9. Rb1 b6 $146 ({Predecessor:} 9... Bd7 10. b3 Bc6 11. Bb2 {1-0 (44) Pallos,L (2250)-Mike,A (1900) Fuzesabony 1994}) 10. Bd2 Bb7 11. b4 cxb4 12. axb4 Nbd7 13. Qb3 Rab8 14. Rfc1 Rfc8 15. b5 Nc5 16. Qd1 a5 17. Nd4 Bxg2 18. Kxg2 Qb7+ 19. Nc6 Ra8 20. d4 Nce4 21. Nxe4 Nxe4 22. f3 Nxd2 23. Qxd2 Bf6 24. e3 Re8 25. f4 e5 26. fxe5 dxe5 $14 27. d5 e4 28. Rf1 a4 29. Rxf6 gxf6 30. Qd4 Kg7 31. Rf1 a3 32. Qxf6+ Kg8 33. Rf5 1-0

[Event "ESTCC U50 2018"]
[Site "Walbrzych"]
[Date "2018.04.15"]
[Round "2"]
[White "De la Orden Alcocer, Alejandro"]
[Black "Telenius, Kimmo"]
[Result "1/2-1/2"]
[ECO "A10"]
[WhiteElo "2013"]
[BlackElo "1603"]
[Annotator "NA RC"]
[PlyCount "109"]
[EventDate "2018.??.??"]
[EventCountry "POL"]
[SourceTitle "playchess.com"]
[Source "ChessBase"]
[SourceQuality "1"]
[WhiteTeam "Spain"]
[BlackTeam "Finland"]
[WhiteTeamCountry "ESP"]
[BlackTeamCountry "FIN"]
[TimeControl "40/5400+30:1800+30"]

1. c4 {[%emt 0:00:28]} d6 {[%emt 0:00:16]} 2. g3 {[%emt 0:00:35]} Nf6 {[%emt 0:00:40]} 3. Bg2 {[%emt 0:00:19]} g6 {[%emt 0:00:39]} 4. Nc3 {[%emt 0:00:10]} Bg7 {[%emt 0:00:20]} 5. Nf3 {[%emt 0:00:37]} O-O {[%emt 0:01:40]} 6. Rb1 {[%emt 0:00:14]} Re8 {[%emt 0:00:59]} 7. O-O {[%emt 0:00:27]} e5 {[%emt 0:01:50]} 8. d3 {[%emt 0:00:08]} Nc6 {[%emt 0:02:31]} 9. Bg5 {[%emt 0:02:40]} h6 {[%emt 0:02:03] A26: English Opening vs King's Indian with ...Nc6 and d3} 10. Bxf6 {[%emt 0:01:05] LiveBook: 19 Games} Bxf6 {[%emt 0:01:02]} 11. b4 {[%emt 0:00:42]} Rb8 $146 {[%emt 0:03:40]} ({Find the theoretical novelty and annotate with similar games:} 11... a6 12. a4 Bg7 13. b5 axb5 14. axb5 Ne7 15. Qb3 Be6 16. Nd2 c6 17. Rfc1 d5 18. Qb4 Nf5 19. bxc6 bxc6 20. Qb6 Rc8 21. Qxd8 Rexd8 22. Na4 Bf8 23. e3 Rb8 24. Ra1 d4 {0-1 (58) Valdes Romero,L (2402)-Cuenca Jimenez,J (2483) Roquetas de Mar 2015}) 12. Re1 {[%emt 0:05:11]} Be6 {[%emt 0:02:52]} 13. Nd2 {[%emt 0:03:08]} Qd7 {[%emt 0:04:04]} 14. b5 {[%emt 0:01:15]} Ne7 {[%emt 0:02:00]} 15. Qb3 {[%emt 0:07:51]} Bg7 {[%emt 0:07:01]} 16. Qa3 {[%emt 0:00:43]} d5 {[%emt 0:07:51]} 17. cxd5 {[%emt 0:00:51]} Nxd5 {[%emt 0:04:01]} 18. Nxd5 {[%emt 0:00:03]} Bxd5 {[%emt 0:00:26]} 19. Bxd5 {[%emt 0:00:02]} Qxd5 {[%emt 0:00:28]} 20. Rec1 {[%emt 0:00:02]} Bf8 {[%emt 0:02:20]} 21. Qa4 {[%emt 0:16:53]} Rbc8 {[%emt 0:07:26]} 22. Qxa7 {[%emt 0:04:31]} Ra8 {[%emt 0:01:26]} 23. Ne4 {[%emt 0:00:14]} Kg7 {[%emt 0:03:00]} ({Avoid the trap} 23... Qxe4 $2 24. Qxa8 Rxa8 25. dxe4 $18) 24. Nc3 {[%emt 0:00:11]} Rxa7 {[%emt 0:05:03]} 25. Nxd5 {[%emt 0:00:03]} Rxa2 {[%emt 0:03:33]} 26. Nxc7 {[%emt 0:01:04]} Rd8 {[%emt 0:01:11]} 27. Kf1 {[%emt 0:00:45]} e4 {[%emt 0:01:06]} 28. Rc3 $2 {[%emt 0:06:17]} ({Better is} 28. dxe4 $16 Rdd2 29. Re1) 28... b6 {[%emt 0:04:06]} 29. Na6 {[%emt 0:07:33]} exd3 {[%emt 0:02:41]} 30. Rxd3 {[%emt 0:00:03]} Rc8 {[%emt 0:01:07]} (30... Rxd3 $11 31. exd3 Rd2) 31. Rd7 {[%emt 0:07:59]} Rcc2 {[%emt 0:00:54]} 32. Nb4 {[%emt 0:00:27]} Rab2 {[%emt 0:01:22]} 33. Rxb2 {[%emt 0:10:11]} Rxb2 {[%emt 0:00:20]} 34. Nc6 {[%emt 0:00:13]} Rxb5 {[%emt 0:01:52]} 35. Nd8 {[%emt 0:00:02]} Rf5 {[%emt 0:00:51]} 36. e4 {[%emt 0:05:18]} Re5 {[%emt 0:04:24]} 37. Nxf7 {[%emt 0:01:46]} Re7 {[%emt 0:00:43]} 38. Rxe7 {[%emt 0:00:55]} Bxe7 {[%emt 0:00:16]} 39. Ne5 {[%emt 0:00:14]} b5 {[%emt 0:00:38]} 40. Ke2 {[%emt 0:00:00]} b4 {[%emt 0:01:44]} 41. Kd2 {[%emt 0:04:48]} h5 {[%emt 0:04:14]} 42. h3 {[%emt 0:01:19]} g5 {[%emt 0:00:50]} 43. Nd3 {[%emt 0:00:22]} Kf6 {[%emt 0:01:42]} 44. Kc2 {[%emt 0:02:16]} g4 {[%emt 0:03:59]} 45. h4 {[%emt 0:03:14]} Bf8 {[%emt 0:05:01]} 46. Nf4 {[%emt 0:00:47]} Bc5 {[%emt 0:00:56]} 47. Nd3 {[%emt 0:01:15]} Bd4 {[%emt 0:01:24]} 48. Kb3 {[%emt 0:00:25]} Bc3 {[%emt 0:00:39]} 49. Kc4 {[%emt 0:01:04]} Ke6 {[%emt 0:01:00]} 50. Kb3 {[%emt 0:11:36]} Bd2 {[%emt 0:01:18]} 51. Kc2 {[%emt 0:03:20]} Bc3 {[%emt 0:00:39]} 52. Kd1 {[%emt 0:00:13]} Bd4 {[%emt 0:02:23]} 53. Kd2 {[%emt 0:05:24]} b3 $11 {[%emt 0:03:08]} 54. Kd1 {[%emt 0:05:29]} Kf6 {[%emt 0:01:00]} 55. Kc1 {[%emt 0:01:10]} 1/2-1/2

[Event "ESTCC U50 2018"]
[Site "Walbrzych"]
[Date "2018.04.15"]
[Round "2"]
[White "Roth, Martin"]
[Black "Ograbek, Grzegorz"]
[Result "0-1"]
[ECO "C13"]
[WhiteElo "2008"]
[BlackElo "2140"]
[Annotator "NA RC"]
[PlyCount "67"]
[EventDate "2018.??.??"]
[EventCountry "POL"]
[SourceTitle "playchess.com"]
[Source "ChessBase"]
[SourceQuality "1"]
[WhiteTeam "SUI"]
[BlackTeam "POL"]
[WhiteTeamCountry "GER"]
[BlackTeamCountry "POL"]
[TimeControl "40/5400+30:1800+30"]

1. e4 {[%emt 0:00:00]} e6 {[%emt 0:00:14]} 2. d4 {[%emt 0:00:00]} d5 {[%emt 0:00:07]} 3. Nc3 {[%emt 0:00:17]} Nf6 {[%emt 0:00:08]} 4. Bg5 {[%emt 0:00:24]} dxe4 {[%emt 0:00:24]} 5. Nxe4 {[%emt 0:00:23]} Be7 {[%emt 0:00:08]} 6. Nxf6+ {[%emt 0:05:13]} gxf6 {[%emt 0:01:09]} 7. Bf4 {[%emt 0:00:56]} c5 {[%emt 0:05:53]} 8. dxc5 {[%emt 0:00:32]} Qxd1+ {[%emt 0:04:41]} 9. Rxd1 {[%emt 0:00:14]} Bxc5 {[%emt 0:00:17]} 10. Bd6 {[%emt 0:08:16] C13: French: Classical System: 4 Bg5 Be7, Alekhine-Chatard Attack} Bxd6 {[%emt 0:04:15]} 11. Rxd6 {[%emt 0:00:17]} Bd7 $146 {[%emt 0:00:13]} ({Predecessor:} 11... Nc6 12. Bb5 Bd7 13. Ne2 Rg8 14. O-O Ke7 15. Rfd1 Rad8 16. Ng3 a6 17. Ba4 b5 {0-1 (68) Hasenoehrl,M-Pronold,H (2315) Freilassing 1992}) 12. Be2 {[%emt 0:07:11]} Nc6 {[%emt 0:05:08]} 13. c3 {[%emt 0:00:32]} Rg8 {[%emt 0:05:25]} 14. g3 {[%emt 0:01:03]} Ne5 {[%emt 0:02:11]} 15. f3 {[%emt 0:00:52]} (15. Nh3 $15) 15... Bc6 {[%emt 0:00:15]} 16. Kf2 {[%emt 0:00:19]} Bd5 {[%emt 0:01:08]} 17. Bb5+ {[%emt 0:11:30]} Ke7 {[%emt 0:00:27]} 18. Rxd5 {[%emt 0:00:09]} exd5 {[%emt 0:00:18]} 19. Ne2 {[%emt 0:00:17]} (19. f4 $17) 19... a6 {[%emt 0:00:18]} 20. Ba4 {[%emt 0:00:03]} Nd3+ {[%emt 0:06:39]} 21. Kg2 {[%emt 0:00:46]} Nxb2 {[%emt 0:00:10]} 22. Bc2 {[%emt 0:00:12]} Kd6 {[%emt 0:04:19]} 23. Bxh7 {[%emt 0:00:50]} Rge8 {[%emt 0:04:32]} 24. Nd4 {[%emt 0:01:07]} b5 {[%emt 0:02:59]} 25. Bf5 {[%emt 0:03:18]} Re3 {[%emt 0:05:04]} 26. Rb1 {[%emt 0:02:02]} Na4 {[%emt 0:08:37]} 27. Bc2 {[%emt 0:01:21]} Rxc3 {[%emt 0:00:14]} 28. Bxa4 {[%emt 0:00:07]} bxa4 {[%emt 0:00:10]} 29. Rd1 {[%emt 0:04:00]} Rb8 {[%emt 0:00:54]} 30. Rd2 {[%emt 0:00:02]} a3 {[%emt 0:00:44]} 31. Kf2 {[%emt 0:01:05]} Rb2 $19 {[%emt 0:00:22]} 32. Ke2 {[%emt 0:00:02]} Kc5 {[%emt 0:00:32]} 33. Nb3+ {[%emt 0:00:39]} Rcxb3 {[%emt 0:00:21]} 34. axb3 {[%emt 0:00:02]} 0-1

[Event "ESTCC U50 2018"]
[Site "Walbrzych"]
[Date "2018.04.15"]
[Round "2"]
[White "Czyz, Andrzej"]
[Black "Aegerter, Klaus"]
[Result "1-0"]
[ECO "A02"]
[WhiteElo "1999"]
[BlackElo "1731"]
[Annotator "NA RC"]
[PlyCount "124"]
[EventDate "2018.??.??"]
[EventCountry "POL"]
[SourceTitle "playchess.com"]
[Source "ChessBase"]
[SourceQuality "1"]
[WhiteTeam "Poland"]
[BlackTeam "Switzerland"]
[WhiteTeamCountry "POL"]
[BlackTeamCountry "SUI"]
[TimeControl "40/5400+30:1800+30"]

1. f4 {[%emt 0:00:00]} g6 {[%emt 0:01:07]} 2. e4 {[%emt 0:01:25]} Bg7 {[%emt 0:00:29]} 3. Nf3 {[%emt 0:00:36]} d6 {[%emt 0:00:37]} 4. Bc4 {[%emt 0:00:34]} e6 {[%emt 0:01:37]} 5. O-O {[%emt 0:02:22] B07: Pirc Defence: Miscellaneous Systems} (5. d3 Ne7 6. Bb3 a6 7. Nc3 b5 8. a4 b4 9. Ne2 a5 10. Ng3 O-O 11. O-O c5 12. h4 Kh8 {1-0 (21) Predke,A (2601)-Basiev,V (1990) Sochi 2017}) 5... Nf6 {[%emt 0:03:26]} 6. Qe2 {[%emt 0:01:38]} ({Better is} 6. e5 $14 Nfd7 7. d4) 6... O-O {[%emt 0:00:53]} 7. Bb3 $146 {[%emt 0:00:22]} ({Find the theoretical novelty and annotate with similar games:} 7. Nc3 c6 8. d3 b5 9. Bb3 a5 10. a4 b4 11. Nd1 Ba6 12. Nf2 c5 {0-1 (68) Amoros Aguilar,L-Prats Rodriguez,J (2166) Barcelona 2002}) 7... c5 {[%emt 0:03:01]} 8. Nc3 {[%emt 0:05:54]} Nc6 {[%emt 0:03:10]} 9. d3 {[%emt 0:03:11]} a6 {[%emt 0:08:21]} 10. a4 {[%emt 0:00:40]} Bd7 {[%emt 0:03:56]} 11. h3 {[%emt 0:01:57]} Rb8 {[%emt 0:06:53]} 12. e5 {[%emt 0:03:18]} dxe5 {[%emt 0:08:49]} 13. fxe5 {[%emt 0:01:36]} Ne8 {[%emt 0:06:48]} 14. Be3 {[%emt 0:02:03]} b6 {[%emt 0:01:35]} 15. Bf2 {[%emt 0:01:06]} Qc7 {[%emt 0:07:23]} 16. Rae1 {[%emt 0:02:56]} Ne7 {[%emt 0:03:28]} 17. d4 {[%emt 0:09:38]} cxd4 {[%emt 0:02:19]} 18. Bxd4 {[%emt 0:01:36]} Nf5 {[%emt 0:03:38]} 19. Bf2 {[%emt 0:00:37]} b5 {[%emt 0:01:33]} 20. axb5 {[%emt 0:01:07]} axb5 {[%emt 0:00:05]} 21. Nd4 {[%emt 0:07:38]} Nxd4 {[%emt 0:02:01]} 22. Bxd4 {[%emt 0:00:06]} b4 {[%emt 0:01:13]} 23. Ne4 {[%emt 0:08:25]} Bb5 {[%emt 0:00:50]} 24. Qe3 {[%emt 0:01:04]} Bxf1 {[%emt 0:00:17]} 25. Rxf1 {[%emt 0:00:06]} h6 {[%emt 0:07:15]} ({Black should try} 25... Bxe5 $17 26. Bxe5 Qxe5 27. Nf6+ Qxf6 28. Rxf6 Nxf6) 26. Nc5 {[%emt 0:03:58]} Rd8 {[%emt 0:05:01]} 27. Nd3 {[%emt 0:01:05]} Qc8 {[%emt 0:03:35]} 28. Bc5 {[%emt 0:01:35]} ({Don't take} 28. Nxb4 Nc7 $14) 28... Nc7 {[%emt 0:00:52]} 29. Bxf8 {[%emt 0:01:26]} Bxf8 {[%emt 0:00:19]} 30. Qf4 {[%emt 0:05:08]} Rd7 {[%emt 0:03:19]} 31. Ba4 {[%emt 0:00:52]} Re7 {[%emt 0:02:12]} 32. Qxb4 {[%emt 0:00:49]} Nd5 {[%emt 0:00:47]} 33. Qe4 {[%emt 0:00:46]} Rc7 {[%emt 0:00:55]} 34. Bb3 {[%emt 0:00:44]} Rd7 {[%emt 0:01:12]} 35. Kh1 {[%emt 0:00:39]} Qc7 {[%emt 0:02:05]} 36. Qf3 {[%emt 0:02:41]} Bg7 {[%emt 0:00:52]} 37. Ba4 {[%emt 0:01:38]} Re7 {[%emt 0:00:51]} 38. Qe4 {[%emt 0:00:47]} Qa7 {[%emt 0:00:56]} 39. Bb3 {[%emt 0:02:52]} Rd7 {[%emt 0:00:19]} 40. Re1 {[%emt 0:00:00]} Ne7 {[%emt 0:01:59]} 41. Qe3 {[%emt 0:05:25]} Qa5 {[%emt 0:02:01]} 42. Qc5 {[%emt 0:02:03]} Qd2 {[%emt 0:03:04]} 43. Rf1 {[%emt 0:03:21]} Qg5 {[%emt 0:05:21]} 44. Qf2 {[%emt 0:04:33]} Nf5 {[%emt 0:04:23]} 45. Kg1 {[%emt 0:02:53]} h5 {[%emt 0:03:46]} 46. Ba4 {[%emt 0:03:27]} Rd4 {[%emt 0:01:44]} 47. Bb3 {[%emt 0:01:23]} Rh4 {[%emt 0:01:52]} 48. Kh2 {[%emt 0:01:33]} Rd4 {[%emt 0:01:32]} 49. g3 {[%emt 0:01:08]} Kh7 {[%emt 0:02:54]} 50. Re1 {[%emt 0:00:47]} Rd7 {[%emt 0:08:38]} (50... Qd8 $17) 51. Re4 {[%emt 0:01:26]} Bh6 {[%emt 0:01:07]} 52. Ba4 {[%emt 0:05:07]} Rd8 {[%emt 0:00:43]} 53. b4 {[%emt 0:01:03]} Ra8 {[%emt 0:01:45]} 54. b5 {[%emt 0:00:13]} Kg7 {[%emt 0:01:40]} 55. b6 {[%emt 0:00:30]} Ne3 $2 {[%emt 0:00:20]} (55... Rb8 $11 {and Black stays safe.}) 56. b7 {[%emt 0:00:58]} Rb8 {[%emt 0:00:07]} 57. Bc6 {[%emt 0:00:28]} Qd8 $2 {[%emt 0:00:26]} (57... Nf5 58. Ra4 Qe7) 58. Rxe3 {[%emt 0:00:36]} Qb6 {[%emt 0:00:31]} 59. Qf6+ {[%emt 0:00:12]} Kg8 {[%emt 0:00:30]} 60. Rf3 {[%emt 0:01:03]} Rf8 {[%emt 0:01:21]} 61. Be4 {[%emt 0:00:28]} Qb1 {[%emt 0:00:44]} 62. Bxg6 $18 {[%emt 0:01:50]} Qb4 1-0

[Event "ESTCC U50 2018"]
[Site "Walbrzych"]
[Date "2018.04.15"]
[Round "2"]
[White "Giulian, Rosemary A"]
[Black "Kivimaki, Jaakko"]
[Result "0-1"]
[ECO "C60"]
[WhiteElo "1880"]
[BlackElo "2181"]
[Annotator "RC"]
[PlyCount "111"]
[EventDate "2018.??.??"]
[EventCountry "POL"]
[SourceTitle "playchess.com"]
[Source "ChessBase"]
[SourceQuality "1"]
[WhiteTeam "Scotland"]
[BlackTeam "Finland"]
[WhiteTeamCountry "SCO"]
[BlackTeamCountry "FIN"]
[TimeControl "40/5400+30:1800+30"]

1. e4 {[%emt 0:00:00]} e5 {[%emt 0:00:05]} 2. Nf3 {[%emt 0:00:00]} Nc6 {[%emt 0:00:06]} 3. Bb5 {[%emt 0:00:00]} Nge7 {[%emt 0:00:04]} 4. O-O {[%emt 0:00:12]} Ng6 {[%emt 0:00:19]} 5. c3 {[%emt 0:00:48]} a6 {[%emt 0:00:08]} 6. Ba4 {[%emt 0:00:09]} Be7 {[%emt 0:00:11]} 7. d4 {[%emt 0:01:17]} d6 {[%emt 0:00:13]} 8. d5 {[%emt 0:01:23]} b5 {[%emt 0:00:28]} 9. Bc2 {[%emt 0:03:06]} Na5 {[%emt 0:00:14]} 10. a4 {[%emt 0:04:04]} Bd7 {[%emt 0:00:14]} 11. Nbd2 {[%emt 0:01:57]} c5 {[%emt 0:00:43]} 12. dxc6 {[%emt 0:01:47]} Nxc6 {[%emt 0:00:59]} 13. b4 {[%emt 0:04:20]} O-O {[%emt 0:02:16]} 14. a5 {[%emt 0:05:25]} Rc8 {[%emt 0:05:16]} 15. g3 {[%emt 0:22:02]} Bg4 {[%emt 0:03:17]} 16. Bd3 {[%emt 0:07:23]} Qd7 {[%emt 0:04:49]} 17. Qb3 {[%emt 0:05:45]} Bf6 {[%emt 0:20:20]} 18. c4 {[%emt 0:04:49]} Nd4 {[%emt 0:11:09]} 19. Nxd4 {[%emt 0:01:22]} exd4 {[%emt 0:00:18]} 20. Qb1 {[%emt 0:06:13]} bxc4 {[%emt 0:08:07]} 21. Bxc4 {[%emt 0:03:39]} Rxc4 {[%emt 0:05:30]} 22. Nxc4 {[%emt 0:03:28]} Be2 {[%emt 0:00:51]} 23. Nd2 {[%emt 0:06:06]} Bxf1 {[%emt 0:05:52]} 24. Nxf1 {[%emt 0:01:44]} Ne5 {[%emt 0:01:47]} 25. Bd2 {[%emt 0:04:30]} Qb7 {[%emt 0:03:51]} 26. Ra3 {[%emt 0:03:15]} d3 {[%emt 0:10:25]} 27. Bf4 {[%emt 0:03:33]} Nf3+ {[%emt 0:05:26]} 28. Kh1 {[%emt 0:00:11]} Qxe4 {[%emt 0:05:47]} 29. Qxd3 {[%emt 0:00:21]} Ng5+ {[%emt 0:01:00]} 30. Qxe4 {[%emt 0:00:28]} Nxe4 {[%emt 0:00:02]} 31. f3 {[%emt 0:01:14]} Nc3 {[%emt 0:00:54]} 32. Bd2 {[%emt 0:01:49]} Nb5 {[%emt 0:00:29]} 33. Rd3 {[%emt 0:00:21]} Rc8 {[%emt 0:00:13]} 34. Ne3 {[%emt 0:00:11]} Bc3 {[%emt 0:02:20]} 35. Nf5 {[%emt 0:00:48]} Kf8 {[%emt 0:03:07]} 36. Bxc3 {[%emt 0:00:45]} Rxc3 {[%emt 0:00:53]} 37. Rxc3 {[%emt 0:00:08]} Nxc3 {[%emt 0:00:01]} 38. Nxd6 {[%emt 0:00:54]} Ke7 {[%emt 0:00:20]} 39. Nf5+ {[%emt 0:01:25]} Kd7 {[%emt 0:00:15]} 40. Nd4 {[%emt 0:00:00]} Kd6 {[%emt 0:00:19]} 41. Kg2 {[%emt 0:04:14]} Kd5 {[%emt 0:01:49]} 42. Nb3 {[%emt 0:04:23]} Kc4 {[%emt 0:03:09]} 43. Nc5 {[%emt 0:00:43]} Kb5 {[%emt 0:00:20]} 44. Kf2 {[%emt 0:03:14]} Nd5 {[%emt 0:00:22]} 45. Ke2 {[%emt 0:01:36]} Nxb4 {[%emt 0:00:21]} 46. Nb7 {[%emt 0:00:28]} Nc6 {[%emt 0:04:03]} 47. Nd6+ {[%emt 0:00:58]} Kxa5 {[%emt 0:00:13]} 48. Nxf7 {[%emt 0:00:06]} Kb4 {[%emt 0:00:47]} 49. Kd3 {[%emt 0:00:30]} a5 {[%emt 0:01:07]} 50. f4 {[%emt 0:00:16]} Kb3 {[%emt 0:00:11]} 51. Ne5 {[%emt 0:01:44]} Nb4+ {[%emt 0:00:53]} 52. Kd4 {[%emt 0:02:09]} a4 {[%emt 0:00:31]} 53. Nc4 {[%emt 0:00:22]} Nc2+ {[%emt 0:00:46]} 54. Kd5 {[%emt 0:01:56]} Ne3+ {[%emt 0:02:02]} 55. Nxe3 {[%emt 0:01:57]} a3 {[%emt 0:00:07]} 56. Ke5 0-1

[Event "ESTCC U50 2018"]
[Site "Walbrzych"]
[Date "2018.04.15"]
[Round "2"]
[White "Puroila, Sippo"]
[Black "Lopez de Turiso, Jose Angel"]
[Result "0-1"]
[ECO "A10"]
[WhiteElo "1838"]
[BlackElo "2064"]
[Annotator "NA RC"]
[PlyCount "114"]
[EventDate "2018.??.??"]
[EventCountry "POL"]
[SourceTitle "playchess.com"]
[Source "ChessBase"]
[SourceQuality "1"]
[WhiteTeam "Finland"]
[BlackTeam "Spain"]
[WhiteTeamCountry "FIN"]
[BlackTeamCountry "ESP"]
[TimeControl "40/5400+30:1800+30"]

1. c4 {[%emt 0:00:00]} b6 {[%emt 0:00:34]} 2. Nc3 {[%emt 0:00:00]} Bb7 {[%emt 0:00:19]} 3. d4 {[%emt 0:00:02]} f5 {[%emt 0:03:11]} 4. Bg5 {[%emt 0:01:48]} g6 {[%emt 0:03:47]} 5. f3 {[%emt 0:04:40]} Bg7 {[%emt 0:02:58]} 6. e4 {[%emt 0:01:43]} fxe4 {[%emt 0:02:56]} 7. fxe4 {[%emt 0:00:55]} c5 {[%emt 0:02:56]} 8. d5 $1 {[%emt 0:00:56]} d6 {[%emt 0:02:06]} 9. Nf3 {[%emt 0:00:49]} Nd7 {[%emt 0:01:41]} 10. Bd3 {[%emt 0:07:56]} Nh6 {[%emt 0:06:55]} 11. Qd2 {[%emt 0:06:33]} Nf7 {[%emt 0:01:41]} 12. O-O {[%emt 0:00:20]} Nde5 {[%emt 0:05:38]} 13. Nxe5 {[%emt 0:01:56]} Bxe5 {[%emt 0:05:02]} 14. Rf3 {[%emt 0:03:16]} O-O {[%emt 0:06:51]} 15. Raf1 {[%emt 0:04:16]} Bg7 {[%emt 0:02:18]} 16. Be3 {[%emt 0:12:05]} Ne5 {[%emt 0:04:06]} 17. Rxf8+ {[%emt 0:00:11]} Bxf8 {[%emt 0:00:06]} 18. Be2 {[%emt 0:00:08]} Qd7 {[%emt 0:06:05]} 19. h3 {[%emt 0:06:38]} Bg7 {[%emt 0:00:39]} 20. a4 Rf8 {[%emt 0:03:29]} 21. Rxf8+ {[%emt 0:03:36]} Kxf8 {[%emt 0:01:05]} 22. Bh6 {[%emt 0:06:30]} a6 {[%emt 0:02:32]} 23. Qf4+ {[%emt 0:02:38]} Kg8 {[%emt 0:00:12]} 24. Bxg7 {[%emt 0:02:08]} Kxg7 {[%emt 0:00:09]} 25. b3 {[%emt 0:00:23]} Bc8 {[%emt 0:01:14]} 26. Nd1 {[%emt 0:00:40]} Qe8 {[%emt 0:01:27]} 27. Ne3 {[%emt 0:00:42]} Qf7 {[%emt 0:01:47]} 28. Qxf7+ {[%emt 0:00:36]} Kxf7 {[%emt 0:02:34]} 29. Kf2 {[%emt 0:00:09]} Kf6 {[%emt 0:01:35]} 30. g4 {[%emt 0:04:21]} Nf7 {[%emt 0:02:14]} 31. h4 $19 {[%emt 0:01:46]} (31. Ng2 $17 {was called for.}) 31... Ke5 {[%emt 0:05:48]} 32. Kf3 {[%emt 0:00:21]} Kd4 {[%emt 0:04:45]} 33. Nf5+ {[%emt 0:10:36]} gxf5 {[%emt 0:02:18]} 34. exf5 {[%emt 0:00:03]} Ke5 {[%emt 0:01:14]} 35. Ke3 {[%emt 0:01:02]} Nd8 {[%emt 0:01:22]} 36. Bd3 {[%emt 0:00:45]} h6 {[%emt 0:01:49]} 37. Bc2 {[%emt 0:00:26]} Nb7 {[%emt 0:03:15]} 38. Bd1 {[%emt 0:00:30]} Na5 {[%emt 0:00:10]} 39. Kd3 {[%emt 0:01:57]} h5 {[%emt 0:02:18]} 40. gxh5 {[%emt 0:00:00]} Bxf5+ {[%emt 0:00:09]} 41. Kc3 {[%emt 0:00:18]} Kf6 {[%emt 0:00:42]} 42. Be2 {[%emt 0:00:30]} Kg7 {[%emt 0:02:49]} 43. Bf3 {[%emt 0:00:10]} Kh6 {[%emt 0:00:26]} 44. Be2 {[%emt 0:00:06]} Bd7 {[%emt 0:00:10]} 45. Bf3 {[%emt 0:00:09]} Be8 {[%emt 0:00:10]} 46. Bg4 {[%emt 0:00:07]} Bxh5 {[%emt 0:04:08]} 47. Bc8 {[%emt 0:00:08]} Bd1 {[%emt 0:00:32]} 48. b4 {[%emt 0:00:32]} Nb3 {[%emt 0:00:44]} 49. Bxa6 {[%emt 0:00:35]} Kh5 {[%emt 0:00:58]} 50. Bb5 {[%emt 0:00:49]} Kxh4 {[%emt 0:01:54]} 51. Be8 {[%emt 0:01:05]} Kg5 {[%emt 0:03:44]} 52. Bf7 {[%emt 0:03:02]} Kf6 {[%emt 0:00:30]} 53. Be6 {[%emt 0:00:30]} Ke5 {[%emt 0:01:46]} 54. Bg8 cxb4+ {[%emt 0:01:33]} 55. Kxb4 {[%emt 0:00:04]} Nc5 {[%emt 0:00:20]} 56. a5 {[%emt 0:00:42]} bxa5+ {[%emt 0:01:05]} 57. Kxa5 {[%emt 0:00:03]} Be2 {[%emt 0:00:23]} 0-1

[Event "ESTCC U50 2018"]
[Site "Walbrzych"]
[Date "2018.04.15"]
[Round "2"]
[White "Sidler, Samuel"]
[Black "Strzelecki, Jerzy"]
[Result "0-1"]
[ECO "B40"]
[WhiteElo "1833"]
[BlackElo "2038"]
[Annotator "NA RC"]
[PlyCount "76"]
[EventDate "2018.??.??"]
[EventCountry "POL"]
[SourceTitle "playchess.com"]
[Source "ChessBase"]
[SourceQuality "1"]
[WhiteTeam "Switzerland"]
[BlackTeam "Poland"]
[WhiteTeamCountry "SUI"]
[BlackTeamCountry "POL"]
[TimeControl "40/5400+30:1800+30"]

1. e4 c5 2. Nf3 e6 3. d4 cxd4 4. c3 Nf6 5. e5 Nd5 6. cxd4 d6 7. Nc3 Nc6 {LiveBook: 110 Games} 8. Be2 {B22: Sicilian: 2 c3} (8. exd6 Qxd6 9. Bd3 Be7 10. O-O O-O 11. Ne4 Qd8 12. a3 b6 13. Be3 Bb7 14. Rc1 Rc8 15. Qe2 Nb8 16. Rxc8 Qxc8 17. Rc1 Qd8 18. Ne5 Nxe3 19. fxe3 Nd7 20. Nc6 Bxc6 21. Rxc6 Nf6 22. Nxf6+ Bxf6 23. Be4 Bg5 24. g3 Qd7 25. Kf2 f5 26. Bf3 Rc8 27. Qc4 {½-½ (27) Sevillano,E (2526)-Arnold,M (2540) Los Angeles 2012}) 8... Be7 9. O-O O-O 10. a3 $146 ({Predecessor:} 10. Nxd5 exd5 11. Bf4 Be6 12. Qd2 Rc8 13. Rac1 dxe5 14. Nxe5 Nxe5 15. Bxe5 Qb6 16. Bd3 Bd6 17. Bxd6 Qxd6 {½-½ (25) Dickson,G (2171)-Rawlinson,A (2183) Sunningdale 2006}) 10... dxe5 11. Nxd5 exd5 12. dxe5 Be6 13. Bf4 Rc8 14. Qd3 Qb6 15. Bd1 Rfd8 16. Be3 d4 ({Worse is} 16... Qxb2 17. Bc2 $16) 17. Bc1 g6 18. Re1 a5 19. h3 Rd7 20. g4 (20. Ba4 $11) 20... Rdc7 21. Ba4 Rd8 22. Ng5 Bd5 23. e6 f6 24. Nxh7 Kxh7 25. Bc2 {[#]} Rg8 $19 26. Qd2 Rg7 27. Qh6+ Kg8 28. Bxg6 Bd8 29. Qh5 Ne5 30. Rxe5 fxe5 31. Bf7+ Rcxf7 32. exf7+ Bxf7 33. Qxe5 Bc7 34. Qe2 Qd6 35. f4 d3 36. Qd2 Bb6+ 37. Kf1 Qd4 38. Qh2 d2 0-1